bitfinex-derivatives/quotes_BTCF0:USTF0_20260106
["timestamp","ask_amount","ask_price","bid_price","bid_amount"]
[1767731616595,0.010798,92665.0,92656.0,0.01094043]
[1767731616782,0.010798,92665.0,92657.0,0.0918]
[1767731616991,0.010798,92666.0,92657.0,0.0918]
[1767731617493,0.010798,92663.0,92657.0,0.0918]
[1767731617692,0.010798,92666.0,92657.0,0.0918]
[1767731618589,0.010798,92666.0,92657.0,0.10274043]
[1767731620788,0.010798,92664.0,92657.0,0.0918]
[1767731621607,0.010799,92660.0,92657.0,0.0918]
[1767731621801,0.010799,92658.0,92648.0,0.01094043]
[1767731622001,0.09975454,92646.0,92616.0,0.01094043]
[1767731622203,0.11094505,92643.0,92623.0,0.01094043]
[1767731622499,0.010802,92630.0,92622.0,0.0918]
[1767731622694,0.010802,92630.0,92619.0,0.01094043]
[1767731622695,0.010803,92626.0,92621.0,0.0918]
[1767731622885,0.010803,92624.0,92619.0,0.10089237]
[1767731623091,0.00010133,92625.0,92619.0,0.19269237]
[1767731623292,0.00010133,92625.0,92619.0,0.2036328]
[1767731625199,0.00010133,92625.0,92622.0,0.10089237]
[1767731626502,0.00010133,92625.0,92619.0,0.07563706]
[1767731628088,0.00010133,92625.0,92619.0,0.08657749]
[1767731628294,0.09975454,92635.0,92620.0,0.01094043]
[1767731628594,0.010802,92630.0,92620.0,0.01094043]
[1767731631504,0.010802,92628.0,92620.0,0.01094043]
[1767731631703,0.09975454,92635.0,92620.0,0.01094043]
[1767731631897,0.010802,92628.0,92620.0,0.01094043]
[1767731633205,0.010802,92632.0,92620.0,0.01094043]
[1767731633609,0.010802,92630.0,92620.0,0.01094043]
[1767731636108,0.09975454,92635.0,92620.0,0.01094043]
[1767731637213,0.11055654,92635.0,92620.0,0.01094043]
[1767731637798,0.010802,92633.0,92620.0,0.01094043]
[1767731638309,0.11715348,92635.0,92619.0,0.07563706]
[1767731638508,0.09184,92638.0,92619.0,0.07563706]
[1767731638509,0.010803,92625.0,92619.0,0.07563706]
[1767731639008,0.010802,92628.0,92619.0,0.07563706]
[1767731639205,0.19130061,92638.0,92620.0,0.01853481]
[1767731639506,0.09184,92638.0,92620.0,0.01853481]
[1767731640001,0.19130061,92638.0,92620.0,0.01853481]
[1767731640204,0.010802,92635.0,92620.0,0.01853481]
[1767731640411,0.09946061,92637.0,92620.0,0.01853481]
[1767731640709,0.09946061,92643.0,92623.0,0.01853481]
[1767731641007,0.11026161,92643.0,92623.0,0.01853481]
[1767731641208,0.09946061,92643.0,92623.0,0.04664804]
[1767731641504,0.09946061,92643.0,92624.0,0.01795122]
[1767731643707,0.09946061,92643.0,92628.0,0.01795122]
[1767731644004,0.09946061,92643.0,92629.0,0.010802]
[1767731644205,0.0108,92653.0,92635.0,0.01795122]
[1767731644206,0.09808901,92653.0,92635.0,0.01795122]
[1767731644508,0.09808901,92653.0,92636.0,0.01795122]
[1767731645806,0.09808901,92659.0,92642.0,0.01795122]
[1767731647402,0.09808901,92659.0,92639.0,0.010801]
[1767731647707,0.09808901,92659.0,92640.0,0.010801]
[1767731647913,0.09808901,92659.0,92640.0,0.01795122]
[1767731648810,0.09808901,92659.0,92640.0,0.02875222]
[1767731650607,0.09808901,92659.0,92640.0,0.13058311]
[1767731650807,0.01630075,92660.0,92649.0,0.10183089]
[1767731651009,0.09808901,92664.0,92649.0,0.10183089]
[1767731651208,0.11576707,92664.0,92649.0,0.10183089]
[1767731651413,0.09808901,92662.0,92649.0,0.10183089]
[1767731651804,0.10888701,92662.0,92649.0,0.10183089]
[1767731652210,0.10888701,92662.0,92648.0,0.09184]
[1767731652812,0.11576707,92660.0,92648.0,0.09184]
[1767731653914,0.09808901,92658.0,92648.0,0.09184]
[1767731654106,0.09808901,92658.0,83556.0,0.085]
[1767731654107,0.11576707,92648.0,92627.0,0.01795122]
[1767731654320,0.11576707,92648.0,92631.0,0.09184]
[1767731655316,0.09808901,92648.0,92638.0,0.10183089]
[1767731656604,0.11576707,92656.0,92638.0,0.10183089]
[1767731656813,0.09808901,92652.0,92633.0,0.01795122]
[1767731657113,0.11576707,92652.0,92640.0,0.10183089]
[1767731662111,0.09808901,92658.0,92642.0,0.010801]
[1767731662308,0.11467235,92664.0,92650.0,0.11263089]
[1767731662815,0.11467235,92664.0,92652.0,0.0108]
[1767731663017,0.11467235,92664.0,92650.0,0.11978211]
[1767731664107,0.11467235,92664.0,92651.0,0.09184]
[1767731664702,0.13235041,92664.0,92651.0,0.09184]
[1767731664902,0.09808901,92663.0,92651.0,0.09184]
[1767731666118,0.11576707,92663.0,92651.0,0.09184]
[1767731666420,0.09808901,92661.0,92651.0,0.09184]
[1767731670919,0.01658334,92664.0,92651.0,0.09184]
[1767731671107,0.09808901,92666.0,92651.0,0.09184]
[1767731672209,0.11456178,92666.0,92651.0,0.09184]
[1767731672724,0.11456178,92666.0,92654.0,0.010799]
[1767731672910,0.11456178,92666.0,92651.0,0.10264]
[1767731673214,0.11456178,92666.0,92651.0,0.09184]
[1767731674209,0.06854261,92664.0,92651.0,0.09184]
[1767731674519,0.08517757,92664.0,92651.0,0.09184]
[1767731676305,0.06854261,92664.0,92651.0,0.09184]
[1767731676512,0.06854261,92662.0,92651.0,0.09184]
[1767731677520,0.08517757,92662.0,92651.0,0.09184]
[1767731679221,0.01669053,92666.0,92642.0,0.01679457]
[1767731679222,0.010799,92655.0,92642.0,0.01679457]
[1767731679429,0.06854261,92647.0,92639.0,0.21214]
[1767731682822,0.06854261,92647.0,92639.0,0.09184]
[1767731684226,0.08517757,92647.0,92639.0,0.09184]
[1767731684425,0.06854261,92647.0,92639.0,0.09184]
[1767731684623,0.09184,92663.0,92632.0,0.09184]
[1767731684624,0.06854261,92643.0,92632.0,0.09184]
[1767731684831,0.08517757,92635.0,92626.0,0.1203]
[1767731685018,0.08517757,92635.0,92624.0,0.09184]
[1767731686124,0.06854261,92635.0,92624.0,0.09184]
[1767731688526,0.06854261,92635.0,92620.0,0.10183089]
[1767731688717,0.08517757,92635.0,92621.0,0.09184]
[1767731692426,0.06854261,92635.0,92621.0,0.09184]
[1767731693830,0.01663496,92642.0,92622.0,0.01679457]
[1767731694027,0.09184,92646.0,92625.0,0.01679457]
[1767731694223,0.06854261,92645.0,92625.0,0.01679457]
[1767731694624,0.08517757,92645.0,92625.0,0.01679457]
[1767731695129,0.06854261,92643.0,92625.0,0.01679457]
[1767731698637,0.08564717,92643.0,92622.0,0.01629074]
[1767731700331,0.08564717,92643.0,92624.0,0.010803]
[1767731700532,0.010797,92674.0,92631.0,0.01629074]
[1767731700533,0.01710456,92652.0,92631.0,0.01629074]
[1767731700725,0.01710456,92656.0,92640.0,0.10183089]
[1767731700921,0.01710456,92659.0,92640.0,0.10183089]
[1767731701127,0.01710456,92669.0,92649.0,0.10183089]
[1767731701422,0.01710456,92669.0,92650.0,0.01632929]
[1767731701625,0.010797,92677.0,92652.0,0.0108]
[1767731701821,0.10183089,92680.0,92652.0,0.0108]
[1767731701822,0.010796,92679.0,92655.0,0.010799]
[1767731702030,0.010796,92679.0,92656.0,0.01632929]
[1767731702227,0.01687805,92679.0,92661.0,0.01632929]
[1767731702433,0.01598894,92681.0,92661.0,0.01632929]
[1767731702739,0.04515194,92680.0,92661.0,0.01632929]
[1767731703729,0.06114088,92679.0,92660.0,0.10183089]
[1767731703930,0.04515194,92678.0,92660.0,0.10183089]
[1767731705443,0.04515194,92677.0,92660.0,0.10183089]
[1767731709141,0.01727636,92681.0,92657.0,0.10816929]
[1767731709142,0.04515194,92672.0,92657.0,0.09184]
[1767731709344,0.04515194,92672.0,92660.0,0.10183089]
[1767731709534,0.04515194,92672.0,92657.0,0.09184]
[1767731709839,0.04515194,92672.0,92660.0,0.10183089]
[1767731711136,0.04515194,92672.0,92657.0,0.09184]
[1767731711738,0.04515194,92672.0,92657.0,0.102639]
[1767731712340,0.04515194,92672.0,92660.0,0.10183089]
[1767731712543,0.04515194,92672.0,92657.0,0.102639]
[1767731713142,0.04515194,92672.0,92657.0,0.09184]
[1767731714129,0.04515194,92672.0,92657.0,0.102639]
[1767731715531,0.04515194,92672.0,92659.0,0.010799]
[1767731717730,0.04515194,92672.0,92657.0,0.102639]
[1767731717935,0.04515194,92672.0,92659.0,0.010799]
[1767731719345,0.04515194,92672.0,92657.0,0.09184]
[1767731722046,0.04515194,92672.0,92657.0,0.102639]
[1767731723042,0.01598894,92676.0,92658.0,0.01632929]
[1767731723245,0.01598894,92698.0,92673.0,0.01632929]
[1767731723451,0.01598894,92698.0,92666.0,0.04092019]
[1767731723452,0.010793,92712.0,92683.0,0.010796]
[1767731723647,0.010789,92740.0,92683.0,0.01632929]
[1767731723853,0.010793,92708.0,92683.0,0.01632929]
[1767731724054,0.102633,92711.0,92683.0,0.01632929]
[1767731724250,0.09184,92711.0,92679.0,0.01632929]
[1767731724546,0.010794,92698.0,92680.0,0.09184]
[1767731724753,0.010794,92698.0,92681.0,0.09184]
[1767731725141,0.04515194,92710.0,92681.0,0.09184]
[1767731725648,0.04515194,92700.0,92681.0,0.09184]
[1767731725841,0.04515194,92695.0,92681.0,0.09184]
[1767731727236,0.04515194,92695.0,92684.0,0.010796]
[1767731727442,0.04515194,92695.0,92681.0,0.09184]
[1767731728146,0.04515194,92695.0,92682.0,0.010796]
[1767731728354,0.04515194,92701.0,92684.0,0.010796]
[1767731728553,0.04515194,92701.0,92682.0,0.01632929]
[1767731729047,0.04515194,92701.0,92683.0,0.010796]
[1767731729552,0.06114088,92701.0,92682.0,0.01632929]
[1767731729750,0.04515194,92700.0,92682.0,0.02712529]
[1767731730352,0.04515194,92700.0,92684.0,0.010796]
[1767731730553,0.04515194,92700.0,92684.0,0.02712529]
[1767731730851,0.04515194,92700.0,92684.0,0.010796]
[1767731731251,0.04515194,92700.0,92683.0,0.010796]
[1767731732856,0.04515194,92700.0,92681.0,0.11896529]
[1767731733651,0.04515194,92700.0,92683.0,0.010796]
[1767731733855,0.04515194,92700.0,92686.0,0.01614183]
[1767731734655,0.04515194,92700.0,92683.0,0.010796]
[1767731734955,0.04515194,92700.0,92685.0,0.010796]
[1767731737054,0.04515194,92700.0,92682.0,0.02693783]
[1767731737458,0.04515194,92700.0,92684.0,0.010796]
[1767731737756,0.02672011,92697.0,92681.0,0.09184]
[1767731737955,0.02672011,92696.0,92681.0,0.09184]
[1767731738350,0.02672011,92696.0,92682.0,0.010796]
[1767731738550,0.02672011,92690.0,92681.0,0.09184]
[1767731742170,0.02672011,92690.0,92683.0,0.010796]
[1767731742864,0.02672011,92696.0,92682.0,0.01614183]
[1767731743070,0.01768461,92708.0,92682.0,0.01614183]
[1767731743071,0.02672011,92707.0,92695.0,0.010795]
[1767731743274,0.0918,92713.0,92695.0,0.02693683]
[1767731743563,0.01582349,92712.0,92695.0,0.010795]
[1767731744370,0.01582349,92712.0,92692.0,0.010795]
[1767731744571,0.01582349,92712.0,92692.0,0.01614183]
[1767731744771,0.01582349,92712.0,92694.0,0.01614183]
[1767731745264,0.02672011,92709.0,92692.0,0.010795]
[1767731745660,0.02672011,92709.0,92691.0,0.0918]
[1767731746062,0.02672011,92709.0,92692.0,0.01614183]
[1767731746257,0.02672011,92709.0,92693.0,0.010795]
[1767731746464,0.02672011,92709.0,92692.0,0.01614183]
[1767731746465,0.02672011,92709.0,92695.0,0.010795]
[1767731746662,0.02672011,92709.0,92693.0,0.01614183]
[1767731746863,0.02672011,92709.0,92694.0,0.02693683]
[1767731747065,0.01732044,92712.0,92695.0,0.01614183]
[1767731747261,0.0425436,92715.0,92696.0,0.010794]
[1767731747471,0.02672011,92714.0,92694.0,0.01614183]
[1767731747861,0.02672011,92713.0,92694.0,0.01614183]
[1767731748570,0.02672011,92713.0,92694.0,0.02693683]
[1767731749373,0.02672011,92713.0,92694.0,0.01614183]
[1767731749672,0.02672011,92712.0,92694.0,0.01614183]
[1767731750270,0.02672011,92706.0,92691.0,0.0918]
[1767731750571,0.02672011,92703.0,92691.0,0.0918]
[1767731754472,0.02672011,92708.0,92691.0,0.0918]
[1767731754668,0.02672011,92704.0,92691.0,0.0918]
[1767731757074,0.02672011,92704.0,92691.0,0.15003875]
[1767731757568,0.01066092,92697.0,92679.0,0.01537119]
[1767731757776,0.01066092,92697.0,92682.0,0.010796]
[1767731757978,0.01066092,92697.0,92681.0,0.01537119]
[1767731758771,0.01066092,92697.0,92683.0,0.01537119]
[1767731760273,0.01066092,92697.0,92683.0,0.02616719]
[1767731760779,0.01066092,92697.0,92684.0,0.01537119]
[1767731762079,0.01066092,92697.0,92680.0,0.11674686]
[1767731762280,0.01066092,92697.0,92681.0,0.01415086]
[1767731765583,0.01066092,92697.0,92681.0,0.02494686]
[1767731765974,0.01066092,92697.0,92682.0,0.0918]
[1767731766375,0.01066092,92697.0,92682.0,0.10595086]
[1767731766778,0.01066092,92697.0,92682.0,0.11674686]
[1767731767184,0.01066092,92697.0,92683.0,0.01415086]
[1767731767483,0.01066092,92697.0,92684.0,0.010796]
[1767731768171,0.01550373,92707.0,92688.0,0.010795]
[1767731768375,0.00924485,92706.0,92686.0,0.01415086]
[1767731768571,0.00924485,92706.0,92690.0,0.010795]
[1767731768880,0.00924485,92706.0,92686.0,0.01415086]
[1767731768881,0.00924485,92706.0,92688.0,0.01415086]
[1767731769081,0.00924485,92706.0,92690.0,0.010795]
[1767731769783,0.02806693,92714.0,92694.0,0.01415086]
[1767731769784,0.00924485,92713.0,92694.0,0.01415086]
[1767731769979,0.00924485,92713.0,92699.0,0.010794]
[1767731770881,0.00924485,92713.0,92697.0,0.01415086]
[1767731772988,0.00924485,92712.0,92694.0,0.01415086]
[1767731773190,0.00924485,92712.0,92695.0,0.01415086]
[1767731774486,0.00924485,92712.0,92696.0,0.010794]
[1767731774692,0.00924485,92712.0,92696.0,0.01415086]
[1767731774890,0.01727493,92714.0,92701.0,0.01415086]
[1767731775091,0.00924485,92718.0,92701.0,0.01415086]
[1767731775586,0.00924485,92717.0,92695.0,0.01415086]
[1767731776380,0.02474858,92717.0,92695.0,0.01415086]
[1767731776586,0.00924485,92715.0,92695.0,0.01415086]
[1767731779189,0.00924485,92714.0,92695.0,0.01415086]
[1767731779888,0.00924485,92713.0,92695.0,0.0747556]
[1767731780088,0.00924485,92713.0,92696.0,0.01415086]
[1767731781293,0.00924485,92713.0,92672.0,0.07658606]
[1767731781596,0.00924485,92705.0,92690.0,0.010795]
[1767731782205,0.00924485,92705.0,92692.0,0.010795]
[1767731783096,0.00924485,92705.0,92693.0,0.010795]
[1767731783795,0.01550373,92710.0,92692.0,0.010795]
[1767731783997,0.01550373,92710.0,92691.0,0.01415086]
[1767731783998,0.01550373,92710.0,92694.0,0.010795]
[1767731784189,0.01550373,92710.0,92696.0,0.010794]
[1767731784786,0.01550373,92717.0,92691.0,0.01415086]
[1767731784994,0.01550373,92717.0,92693.0,0.010795]
[1767731785195,0.01550373,92717.0,92694.0,0.0918]
[1767731785390,0.01550373,92717.0,92694.0,0.102595]
[1767731785596,0.01550373,92717.0,92695.0,0.01415086]
[1767731785899,0.00924485,92716.0,92698.0,0.010794]
[1767731786093,0.01550373,92715.0,92698.0,0.010794]
[1767731786299,0.00924485,92714.0,92698.0,0.010794]
[1767731787087,0.00924485,92714.0,92695.0,0.01415086]
[1767731787288,0.01550373,92741.0,92716.0,0.010792]
[1767731787494,0.00924485,92735.0,92717.0,0.0918]
[1767731787694,0.00924485,92735.0,92720.0,0.010792]
[1767731787892,0.0918,92751.0,92720.0,0.010792]
[1767731787893,0.00924485,92750.0,92728.0,0.01415086]
[1767731788101,0.0918,92751.0,92728.0,0.0918]
[1767731788102,0.00924485,92739.0,92728.0,0.0918]
[1767731789198,0.00924485,92739.0,92722.0,0.01415086]
[1767731789398,0.00924485,92739.0,92723.0,0.0918]
[1767731789806,0.10172476,92740.0,92717.0,0.01415086]
[1767731789807,0.00924485,92736.0,92717.0,0.01415086]
[1767731790000,0.00924485,92735.0,92717.0,0.01415086]
[1767731790304,0.00924485,92735.0,92718.0,0.0918]
[1767731790692,0.00924485,92735.0,92717.0,0.01415086]
[1767731790693,0.00924485,92734.0,92713.0,0.05991377]
[1767731790898,0.00924485,92728.0,92719.0,0.0918]
[1767731791206,0.00924485,92728.0,92720.0,0.0918]
[1767731793108,0.00924485,92728.0,92711.0,0.01415086]
[1767731793294,0.00936129,92720.0,92712.0,0.0918]
[1767731793498,0.00936129,92719.0,92702.0,0.05790525]
[1767731793697,0.00936129,92719.0,92709.0,0.0918]
[1767731794096,0.00936129,92719.0,92702.0,0.01403245]
[1767731794293,0.00936129,92719.0,92703.0,0.10583245]
[1767731796708,0.00936129,92719.0,92704.0,0.01403245]
[1767731799006,0.00936129,92712.0,92705.0,0.09176]
[1767731799202,0.00936129,92706.0,92698.0,0.09176]
[1767731799407,0.010792,92718.0,92694.0,0.09176]
[1767731799408,0.00936129,92704.0,92694.0,0.09176]
[1767731799594,0.00936129,92703.0,92692.0,0.09176]
[1767731799798,0.11108605,92702.0,92692.0,0.09176]
[1767731799999,0.00936129,92702.0,92692.0,0.09176]
[1767731800311,0.00936129,92695.0,92677.0,0.0918]
[1767731800509,0.00936129,92691.0,92677.0,0.102597]
[1767731801400,0.00936129,92697.0,92681.0,0.01403245]
[1767731801603,0.00936129,92703.0,92685.0,0.01403245]
[1767731803007,0.00936129,92703.0,92681.0,0.01403245]
[1767731803211,0.00936129,92699.0,92679.0,0.010796]
[1767731803509,0.00936129,92699.0,92678.0,0.02482845]
[1767731803902,0.00936129,92699.0,92679.0,0.0918]
[1767731804800,0.00936129,92698.0,92679.0,0.0918]
[1767731805003,0.00936129,92695.0,92675.0,0.010797]
[1767731805199,0.00936129,92695.0,92676.0,0.0918]
[1767731805602,0.00936129,92695.0,92677.0,0.010797]
[1767731808014,0.00936129,92695.0,92676.0,0.10583245]
[1767731808206,0.00936129,92695.0,92676.0,0.01403245]
[1767731808405,0.00936129,92695.0,92677.0,0.0918]
[1767731809810,0.00936129,92694.0,92677.0,0.102597]
[1767731810210,0.00936129,92694.0,92677.0,0.11662945]
[1767731810917,0.00936129,92694.0,92677.0,0.10583245]
[1767731811610,0.0918,92710.0,92690.0,0.01403245]
[1767731811802,0.19352476,92710.0,92690.0,0.01403245]
[1767731812007,0.00936129,92709.0,92690.0,0.01403245]
[1767731812616,0.00936129,92708.0,92687.0,0.010795]
[1767731812925,0.00936129,92707.0,92687.0,0.010795]
[1767731813310,0.10172476,92700.0,92686.0,0.01403245]
[1767731813504,0.00936129,92695.0,92673.0,0.13433245]
[1767731813709,0.11108605,92690.0,92674.0,0.0918]
[1767731813913,0.11108605,92690.0,92674.0,0.102597]
[1767731814208,0.11108605,92690.0,92675.0,0.01403245]
[1767731814406,0.11108605,92690.0,92676.0,0.010797]
[1767731814811,0.11108605,92690.0,92678.0,0.010797]
[1767731815115,0.11108605,92700.0,92680.0,0.01403245]
[1767731815311,0.11108605,92700.0,92681.0,0.01403245]
[1767731815506,0.00936129,92700.0,92681.0,0.01403245]
[1767731815712,0.00936129,92700.0,92687.0,0.010795]
[1767731817304,0.01394372,92723.0,92680.0,0.10172476]
[1767731817602,0.01394372,92723.0,92679.0,0.010796]
[1767731817603,0.00919663,92714.0,92692.0,0.01390372]
[1767731818202,0.10172476,92702.0,92686.0,0.01390372]
[1767731818412,0.19193531,92802.0,92687.0,0.0918]
[1767731818413,0.10172476,92696.0,92687.0,0.0918]
[1767731818716,0.00919663,92694.0,92676.0,0.010797]
[1767731818919,0.00919663,92694.0,92677.0,0.01390372]
[1767731821006,0.00919663,92694.0,92678.0,0.10570372]
[1767731822118,0.00919663,92694.0,92679.0,0.01398375]
[1767731822320,0.00919663,92694.0,92680.0,0.0918]
[1767731822612,0.00919663,92694.0,92681.0,0.0918]
[1767731825518,0.10172476,92700.0,92647.0,0.08738606]
[1767731825519,0.010795,92689.0,92669.0,0.00215823]
[1767731825725,0.10172476,92682.0,92670.0,0.0918]
[1767731825919,0.00988819,92688.0,92670.0,0.0918]
[1767731826120,0.00988819,92688.0,92670.0,0.10578375]
[1767731828916,0.00988819,92688.0,92671.0,0.01398375]
[1767731829326,0.00988819,92694.0,92671.0,0.01398375]
[1767731829518,0.10172476,92690.0,92671.0,0.01398375]
[1767731829913,0.10172476,92690.0,92672.0,0.01398375]
[1767731830115,0.00988819,92699.0,92677.0,0.01398375]
[1767731830316,0.010794,92696.0,92677.0,0.01398375]
[1767731830516,0.00988819,92696.0,92677.0,0.01398375]
[1767731832916,0.00988819,92695.0,92677.0,0.01398375]
[1767731837325,0.00988819,92695.0,92672.0,0.0918]
[1767731837326,0.00988819,92702.0,92692.0,0.010795]
[1767731837517,0.0918,92704.0,92688.0,0.01398375]
[1767731837918,0.0918,92704.0,92689.0,0.01398375]
[1767731838124,0.00988819,92708.0,92689.0,0.01398375]
[1767731840125,0.00988819,92708.0,92683.0,0.0918]
[1767731840126,0.0918,92709.0,92695.0,0.01398375]
[1767731840625,0.00988819,92715.0,92695.0,0.01398375]
[1767731840831,0.00988819,92711.0,92690.0,0.02477875]
[1767731841023,0.10168819,92711.0,92690.0,0.01398375]
[1767731841820,0.10168819,92711.0,92692.0,0.01398375]
[1767731843525,0.00988819,92710.0,92692.0,0.01398375]
[1767731845331,0.00988819,92710.0,92693.0,0.01398375]
[1767731846329,0.0918,92711.0,92699.0,0.01398375]
[1767731847030,0.00988819,92716.0,92694.0,0.01398375]
[1767731847221,0.00988819,92715.0,92696.0,0.01398375]
[1767731847424,0.00988819,92713.0,92696.0,0.01398375]
[1767731851730,0.00947683,92710.0,92693.0,0.010795]
[1767731851931,0.00947683,92710.0,92693.0,0.01395525]
[1767731852135,0.00215683,92729.0,92711.0,0.01395525]
[1767731852433,0.08192,92744.0,92718.0,0.01395525]
[1767731852434,0.0918,92736.0,92718.0,0.01395525]
[1767731852829,0.10127683,92736.0,92718.0,0.01395525]
[1767731854527,0.00947683,92731.0,92707.0,0.07314878]
[1767731854738,0.00947683,92722.0,92707.0,0.0918]
[1767731855131,0.00947683,92730.0,92708.0,0.01395525]
[1767731858037,0.00947683,92729.0,92708.0,0.01395525]
[1767731858441,0.00947683,92727.0,92708.0,0.01395525]
[1767731862340,0.00947683,92723.0,92709.0,0.0918]
[1767731862536,0.00947683,92723.0,92706.0,0.11654825]
[1767731862741,0.00947683,92723.0,92707.0,0.01395525]
[1767731863545,0.00947683,92723.0,92707.0,0.10575525]
[1767731866645,0.00947683,92727.0,92708.0,0.01395525]
[1767731869743,0.00947683,92726.0,92708.0,0.01395525]
[1767731870838,0.02026783,92726.0,92708.0,0.01395525]
[1767731871043,0.00947683,92725.0,92708.0,0.01395525]
[1767731871943,0.010791,92724.0,92708.0,0.01395525]
[1767731872151,0.00947683,92723.0,92708.0,0.01395525]
[1767731874939,0.00947683,92723.0,92706.0,0.0918]
[1767731874940,0.010792,92721.0,92706.0,0.0918]
[1767731875337,0.00947683,92722.0,92704.0,0.01395525]
[1767731875540,0.010792,92721.0,92705.0,0.0918]
[1767731875740,0.02026783,92722.0,92705.0,0.0918]
[1767731875946,0.02026783,92722.0,92705.0,0.10575525]
[1767731875947,0.00947683,92722.0,92705.0,0.10575525]
[1767731876145,0.00947683,92722.0,92706.0,0.01395525]
[1767731876850,0.02026883,92722.0,92706.0,0.01395525]
[1767731877550,0.00970685,92721.0,92706.0,0.01395525]
[1767731877852,0.02049885,92721.0,92706.0,0.01395525]
[1767731878246,0.010792,92720.0,92706.0,0.01395525]
[1767731878451,0.010792,92718.0,92706.0,0.01395525]
[1767731878749,0.010792,92720.0,92706.0,0.01395525]
[1767731880145,0.00970685,92721.0,92706.0,0.01395525]
[1767731880748,0.010792,92719.0,92706.0,0.01395525]
[1767731881353,0.01994962,92719.0,92702.0,0.0918]
[1767731881652,0.01994962,92719.0,92703.0,0.01371811]
[1767731882152,0.00915762,92719.0,92703.0,0.01371811]
[1767731882650,0.00915762,92719.0,92704.0,0.01371811]
[1767731883152,0.010792,92722.0,92704.0,0.01371811]
[1767731883553,0.010792,92720.0,92704.0,0.01371811]
[1767731883755,0.00915762,92724.0,92704.0,0.01371811]
[1767731883949,0.010792,92722.0,92704.0,0.01371811]
[1767731884845,0.010792,92721.0,92704.0,0.01371811]
[1767731885244,0.00915762,92722.0,92704.0,0.01371811]
[1767731885245,0.010792,92720.0,92704.0,0.01371811]
[1767731886354,0.00915762,92722.0,92704.0,0.01371811]
[1767731888048,0.01994962,92722.0,92704.0,0.01371811]
[1767731889350,0.010792,92720.0,92704.0,0.01371811]
[1767731890247,0.00915762,92722.0,92704.0,0.01371811]
[1767731891053,0.010792,92721.0,92704.0,0.01371811]
[1767731891747,0.00915762,92722.0,92704.0,0.01371811]
[1767731892756,0.01994962,92722.0,92704.0,0.01371811]
[1767731893059,0.00915762,92722.0,92704.0,0.01371811]
[1767731893256,0.01994962,92722.0,92704.0,0.01371811]
[1767731893461,0.00915762,92721.0,92704.0,0.01371811]
[1767731893658,0.010792,92720.0,92704.0,0.01371811]
[1767731894156,0.10543242,92726.0,92699.0,0.00215753]
[1767731894157,0.00915762,92712.0,92699.0,0.00215753]
[1767731895757,0.10095762,92733.0,92711.0,0.01371811]
[1767731895964,0.10095762,92733.0,92714.0,0.01371811]
[1767731896349,0.10095762,92733.0,92715.0,0.01371811]
[1767731896552,0.00915762,92732.0,92715.0,0.01371811]
[1767731898154,0.00915762,92732.0,92720.0,0.10167741]
[1767731898364,0.0918,92733.0,92721.0,0.01371811]
[1767731898963,0.0918,92733.0,92720.0,0.10167741]
[1767731899166,0.0918,92733.0,92718.0,0.01371811]
[1767731902362,0.0918,92733.0,92713.0,0.010792]
[1767731902363,0.00915762,92732.0,92714.0,0.01371811]
[1767731908676,0.00915762,92732.0,92715.0,0.01371811]
[1767731909177,0.01796273,92737.0,92725.0,0.01371811]
[1767731909472,0.09176,92742.0,92726.0,0.01371811]
[1767731909675,0.10091762,92742.0,92726.0,0.01371811]
[1767731909975,0.00915762,92741.0,92723.0,0.01371811]
[1767731910276,0.02784559,92741.0,92723.0,0.01371811]
[1767731910776,0.02784559,92741.0,92724.0,0.01371811]
[1767731912174,0.01868797,92741.0,92724.0,0.01371811]
[1767731912373,0.00942263,92740.0,92724.0,0.01371811]
[1767731912774,0.00942263,92740.0,92718.0,0.09176]
[1767731912775,0.09176,92756.0,92734.0,0.01259458]
[1767731912975,0.1206005,92756.0,92734.0,0.01259458]
[1767731913371,0.010788,92754.0,92734.0,0.01259458]
[1767731913572,0.010788,92752.0,92734.0,0.01259458]
[1767731913772,0.010788,92755.0,92734.0,0.01259458]
[1767731914174,0.1098125,92756.0,92734.0,0.01259458]
[1767731914675,0.00942263,92755.0,92734.0,0.01259458]
[1767731914878,0.00942263,92752.0,92734.0,0.01259458]
[1767731915267,0.00942263,92750.0,92731.0,0.01079]
[1767731915471,0.00942263,92750.0,92732.0,0.01259458]
[1767731916571,0.00942263,92750.0,92733.0,0.01079]
[1767731916766,0.00942263,92750.0,92733.0,0.02338458]
[1767731917272,0.00942263,92750.0,92733.0,0.01259458]
[1767731920079,0.00942263,92745.0,92730.0,0.09176]
[1767731920477,0.010789,92744.0,92730.0,0.09176]
[1767731921374,0.02021163,92745.0,92730.0,0.09176]
[1767731921669,0.00942263,92745.0,92730.0,0.09176]
[1767731921980,0.00942263,92751.0,92734.0,0.01259458]
[1767731922880,0.00942263,92751.0,92735.0,0.02338458]
[1767731923584,0.00942263,92751.0,92735.0,0.01259458]
[1767731924375,0.1098125,92756.0,92740.0,0.11427199]
[1767731924570,0.1098125,92756.0,92741.0,0.01259458]
[1767731925970,0.1098125,92756.0,92740.0,0.10167741]
[1767731925971,0.1098125,92756.0,92738.0,0.02238747]
[1767731926370,0.1098125,92756.0,92740.0,0.10167741]
[1767731926575,0.1098125,92756.0,92738.0,0.02238747]
[1767731926784,0.0180525,92756.0,92740.0,0.10167741]
[1767731926981,0.02368109,92759.0,92741.0,0.01259458]
[1767731927586,0.00942263,92758.0,92741.0,0.01259458]
[1767731928386,0.02773237,92758.0,92741.0,0.01259458]
[1767731928784,0.00942263,92749.0,92731.0,0.01259458]
[1767731931882,0.00942263,92749.0,92732.0,0.09176]
[1767731933797,0.010788,92748.0,92732.0,0.10435458]
[1767731934305,0.11246541,92750.0,92733.0,0.01259458]
[1767731934607,0.010788,92749.0,92733.0,0.01259458]
[1767731936404,0.010788,92748.0,92733.0,0.01259458]
[1767731937403,0.010789,92747.0,92733.0,0.01259458]
[1767731938608,0.00958818,92753.0,92733.0,0.01259458]
[1767731939105,0.010788,92749.0,92733.0,0.01259458]
[1767731939899,0.010788,92751.0,92733.0,0.01259458]
[1767731940305,0.010788,92749.0,92733.0,0.01259458]
[1767731941008,0.00958818,92752.0,92733.0,0.01259458]
[1767731941009,0.010788,92751.0,92733.0,0.01259458]
[1767731941210,0.00958818,92752.0,92733.0,0.01259458]
[1767731941713,0.00958818,92752.0,92734.0,0.09176]
[1767731942012,0.00958818,92752.0,92734.0,0.10356416]
[1767731943305,0.00958818,92752.0,92735.0,0.01180416]
[1767731944711,0.02037618,92752.0,92735.0,0.01180416]
[1767731944907,0.00937277,92745.0,92727.0,0.01180416]
[1767731945113,0.00937277,92743.0,92728.0,0.09176]
[1767731945411,0.02241474,92745.0,92730.0,0.10164472]
[1767731945412,0.010789,92745.0,92730.0,0.10164472]